[Event "Live Chess"]
[Site "Chess.com"]
[Date "2023.05.21"]
[Round "-"]
[White "HadesLearmonth"]
[Black "Hacker_2009"]
[Result "0-1"]
[WhiteElo "1202"]
[BlackElo "1921"]
[TimeControl "300"]
[EndTime "6:32:30 PDT"]
[Termination "Hacker_2009 won by checkmate"]

1. e4 {[%clk 0:04:58.9]} 1... c5 {[%clk 0:04:58.5]} 2. Nf3 {[%clk 0:04:57.9]}
2... d6 {[%clk 0:04:55.6]} 3. d4 {[%clk 0:04:48.7]} 3... cxd4 {[%clk 0:04:54.1]}
4. Nxd4 {[%clk 0:04:47.9]} 4... Nf6 {[%clk 0:04:51.7]} 5. Nc3 {[%clk 0:04:46.2]}
5... a6 {[%clk 0:04:50]} 6. Bc4 {[%clk 0:04:44.1]} 6... e6 {[%clk 0:04:47]} 7.
O-O {[%clk 0:04:41.8]} 7... Be7 {[%clk 0:04:45.7]} 8. Bg5 {[%clk 0:04:39.1]}
8... O-O {[%clk 0:04:44.5]} 9. Qf3 {[%clk 0:04:36]} 9... b5 {[%clk 0:04:30.2]}
10. Bd3 {[%clk 0:04:32.7]} 10... Bb7 {[%clk 0:04:28.9]} 11. Rae1 {[%clk
0:04:27.3]} 11... Nc6 {[%clk 0:04:27.4]} 12. e5 {[%clk 0:04:25.7]} 12... Na5
{[%clk 0:04:20.1]} 13. Qh3 {[%clk 0:04:17.9]} 13... dxe5 {[%clk 0:04:15.9]} 14.
Bxf6 {[%clk 0:04:13.8]} 14... g6 {[%clk 0:04:10.7]} 15. Qh6 {[%clk 0:04:09.7]}
15... Bxf6 {[%clk 0:04:09.6]} 16. Nf3 {[%clk 0:03:45.6]} 16... Rc8 {[%clk
0:04:03.1]} 17. Nxe5 {[%clk 0:03:43.5]} 17... Bxe5 {[%clk 0:04:01.5]} 18. Rxe5
{[%clk 0:03:43.4]} 18... Qf6 {[%clk 0:03:59.6]} 19. Rfe1 {[%clk 0:03:41.6]}
19... Rfd8 {[%clk 0:03:56.7]} 20. R5e3 {[%clk 0:03:36.1]} 20... Nc4 {[%clk
0:03:54.5]} 21. Rf3 {[%clk 0:03:33.3]} 21... Bxf3 {[%clk 0:03:52.5]} 22. gxf3
{[%clk 0:03:31.6]} 22... Ne5 {[%clk 0:03:49]} 23. Re4 {[%clk 0:03:24.1]} 23...
Nxf3+ {[%clk 0:03:45.6]} 24. Kf1 {[%clk 0:03:20.4]} 24... Ng5 {[%clk 0:03:38.3]}
25. Rg4 {[%clk 0:03:16.7]} 25... Nf3 {[%clk 0:03:35]} 26. Ne4 {[%clk 0:03:13.5]}
26... Qe5 {[%clk 0:03:22.3]} 27. Kg2 {[%clk 0:03:07.2]} 27... f5 {[%clk
0:03:14.9]} 28. Rg3 {[%clk 0:03:00.8]} 28... fxe4 {[%clk 0:03:11.3]} 29. Bxe4
{[%clk 0:02:51.8]} 29... Qxe4 {[%clk 0:03:07.9]} 30. Rxf3 {[%clk 0:02:50.9]}
30... Rf8 {[%clk 0:03:05.7]} 31. Qh3 {[%clk 0:02:25.8]} 31... Qxf3+ {[%clk
0:02:56.9]} 32. Qxf3 {[%clk 0:02:24.8]} 32... Rxf3 {[%clk 0:02:56.8]} 33. Kxf3
{[%clk 0:02:24.7]} 33... Rxc2 {[%clk 0:02:56.3]} 34. Ke4 {[%clk 0:02:23.4]}
34... Rxb2 {[%clk 0:02:55.5]} 35. f4 {[%clk 0:02:23.1]} 35... Rxa2 {[%clk
0:02:54.8]} 36. h4 {[%clk 0:02:22.7]} 36... Rh2 {[%clk 0:02:53.4]} 37. f5 {[%clk
0:02:21.6]} 37... exf5+ {[%clk 0:02:51.6]} 38. Kf4 {[%clk 0:02:20.7]} 38...
Rxh4+ {[%clk 0:02:50.8]} 39. Kg5 {[%clk 0:02:20.6]} 39... Rg4+ {[%clk
0:02:50.6]} 40. Kh6 {[%clk 0:02:20]} 40... Ra4 {[%clk 0:02:45.9]} 41. Kg5 {[%clk
0:02:19.5]} 41... f4 {[%clk 0:02:42.4]} 42. Kh6 {[%clk 0:02:17.9]} 42... f3
{[%clk 0:02:41.2]} 43. Kg5 {[%clk 0:02:17.5]} 43... f2 {[%clk 0:02:40.5]} 44.
Kh6 {[%clk 0:02:17.1]} 44... f1=Q {[%clk 0:02:39.4]} 45. Kg5 {[%clk 0:02:16.4]}
45... Qf5+ {[%clk 0:02:38.9]} 46. Kh6 {[%clk 0:02:16]} 46... Rh4# {[%clk
0:02:38.1]} 0-1

[Event "Live Chess"]
[Site "Chess.com"]
[Date "2023.05.21"]
[Round "-"]
[White "viktorskliarov"]
[Black "Anirudh_23"]
[Result "1-0"]
[WhiteElo "2651"]
[BlackElo "1884"]
[TimeControl "300"]
[EndTime "6:32:35 PDT"]
[Termination "viktorskliarov won by resignation"]

1. e4 {[%clk 0:04:54.9]} 1... e6 {[%clk 0:04:58.7]} 2. d4 {[%clk 0:04:50.4]}
2... d5 {[%clk 0:04:57.9]} 3. e5 {[%clk 0:04:50]} 3... c5 {[%clk 0:04:56.3]} 4.
c3 {[%clk 0:04:49.5]} 4... Nc6 {[%clk 0:04:55.2]} 5. Nf3 {[%clk 0:04:49]} 5...
Qb6 {[%clk 0:04:54.4]} 6. a3 {[%clk 0:04:48.3]} 6... f6 {[%clk 0:04:42.9]} 7.
Bd3 {[%clk 0:04:44.4]} 7... fxe5 {[%clk 0:04:20.5]} 8. dxe5 {[%clk 0:04:42.2]}
8... Bd7 {[%clk 0:04:18.9]} 9. O-O {[%clk 0:04:38.2]} 9... O-O-O {[%clk
0:04:17.1]} 10. b4 {[%clk 0:04:32]} 10... h6 {[%clk 0:04:03.6]} 11. Bf4 {[%clk
0:04:22.1]} 11... g5 {[%clk 0:04:02.5]} 12. Bg3 {[%clk 0:04:21]} 12... Bg7
{[%clk 0:04:02]} 13. Re1 {[%clk 0:04:14.2]} 13... Nge7 {[%clk 0:03:52.9]} 14.
Nbd2 {[%clk 0:04:12.8]} 14... Rhf8 {[%clk 0:03:45.8]} 15. bxc5 {[%clk
0:03:47.1]} 15... Qxc5 {[%clk 0:03:44.3]} 16. Nb3 {[%clk 0:03:46.4]} 16... Qb6
{[%clk 0:03:28.4]} 17. Nbd4 {[%clk 0:03:44]} 17... Rde8 {[%clk 0:02:52.1]} 18.
Rb1 {[%clk 0:03:39.2]} 18... Qa5 {[%clk 0:02:32.2]} 19. Nb5 {[%clk 0:03:36]} 1-0

[Event "Live Chess"]
[Site "Chess.com"]
[Date "2023.05.21"]
[Round "-"]
[White "Delacorta"]
[Black "Hussamalhaidar"]
[Result "0-1"]
[WhiteElo "1384"]
[BlackElo "1143"]
[TimeControl "300"]
[EndTime "6:32:41 PDT"]
[Termination "Hussamalhaidar won on time"]

1. d4 {[%clk 0:04:58.3]} 1... e5 {[%clk 0:04:55.4]} 2. dxe5 {[%clk 0:04:56.7]}
2... d6 {[%clk 0:04:54]} 3. exd6 {[%clk 0:04:55.2]} 3... Bxd6 {[%clk 0:04:53.3]}
4. Nf3 {[%clk 0:04:53.5]} 4... Nf6 {[%clk 0:04:52.1]} 5. e3 {[%clk 0:04:52]}
5... Nc6 {[%clk 0:04:50.8]} 6. Be2 {[%clk 0:04:49]} 6... Bf5 {[%clk 0:04:49.5]}
7. c3 {[%clk 0:04:46.5]} 7... Qe7 {[%clk 0:04:46.9]} 8. O-O {[%clk 0:04:44.9]}
8... O-O-O {[%clk 0:04:44.3]} 9. Qa4 {[%clk 0:04:43.3]} 9... Kb8 {[%clk
0:04:35.6]} 10. Bb5 {[%clk 0:04:40.5]} 10... Ne5 {[%clk 0:04:13.8]} 11. Nxe5
{[%clk 0:04:36.9]} 11... Qxe5 {[%clk 0:04:10.5]} 12. g3 {[%clk 0:04:27.9]} 12...
Be4 {[%clk 0:04:01]} 13. Nd2 {[%clk 0:04:17.7]} 13... a6 {[%clk 0:03:15.6]} 14.
Be2 {[%clk 0:03:59]} 14... Bc6 {[%clk 0:03:12.2]} 15. Qb3 {[%clk 0:03:39.9]}
15... Qd5 {[%clk 0:03:07.8]} 16. Qxd5 {[%clk 0:03:35.1]} 16... Bxd5 {[%clk
0:03:05]} 17. Bf3 {[%clk 0:03:24.4]} 17... h5 {[%clk 0:02:58.9]} 18. Bxd5 {[%clk
0:03:22.3]} 18... Nxd5 {[%clk 0:02:57]} 19. Nf3 {[%clk 0:03:11.2]} 19... f6
{[%clk 0:02:48.5]} 20. Rd1 {[%clk 0:03:08.5]} 20... Nb6 {[%clk 0:02:40.7]} 21.
b3 {[%clk 0:03:04]} 21... g5 {[%clk 0:02:38.2]} 22. Nd4 {[%clk 0:02:55.9]} 22...
h4 {[%clk 0:02:34.5]} 23. Nf5 {[%clk 0:02:45.9]} 23... hxg3 {[%clk 0:02:21.8]}
24. fxg3 {[%clk 0:02:34.8]} 24... Be5 {[%clk 0:02:09.3]} 25. Bb2 {[%clk
0:02:30.2]} 25... Nd5 {[%clk 0:02:00.1]} 26. Rab1 {[%clk 0:01:57.4]} 26... Bxc3
{[%clk 0:01:49.6]} 27. Bxc3 {[%clk 0:01:38.7]} 27... Nxc3 {[%clk 0:01:46.9]} 28.
Rxd8+ {[%clk 0:01:37.1]} 28... Rxd8 {[%clk 0:01:44.5]} 29. Re1 {[%clk
0:01:18.3]} 29... Nxa2 {[%clk 0:01:42.6]} 30. Nd4 {[%clk 0:01:08]} 30... Nc3
{[%clk 0:01:40]} 31. Rf1 {[%clk 0:00:59.5]} 31... Ne4 {[%clk 0:01:36]} 32. Rc1
{[%clk 0:00:48.3]} 32... c5 {[%clk 0:01:29.4]} 33. Ne2 {[%clk 0:00:38.6]} 33...
b6 {[%clk 0:01:25.7]} 34. Kg2 {[%clk 0:00:37.7]} 34... Rd2 {[%clk 0:01:19.2]}
35. Kf3 {[%clk 0:00:35.8]} 35... f5 {[%clk 0:01:09.5]} 36. Rh1 {[%clk
0:00:19.3]} 36... Rb2 {[%clk 0:01:01.5]} 37. h4 {[%clk 0:00:16.9]} 37... g4+
{[%clk 0:00:56.2]} 38. Kf4 {[%clk 0:00:15.7]} 38... Rxe2 {[%clk 0:00:51.7]} 39.
h5 {[%clk 0:00:14.8]} 39... Rd2 {[%clk 0:00:38.1]} 40. h6 {[%clk 0:00:13.7]}
40... Rd8 {[%clk 0:00:35.6]} 41. Kxf5 {[%clk 0:00:12.3]} 41... Rh8 {[%clk
0:00:32.2]} 42. Kxe4 {[%clk 0:00:11.2]} 42... a5 {[%clk 0:00:30.4]} 43. Kf5
{[%clk 0:00:08.2]} 43... b5 {[%clk 0:00:29.2]} 44. Kg6 {[%clk 0:00:07]} 44... a4
{[%clk 0:00:26.2]} 45. Kg7 {[%clk 0:00:06.2]} 45... Rc8 {[%clk 0:00:24.7]} 46.
h7 {[%clk 0:00:05.3]} 46... Rc7+ {[%clk 0:00:23]} 47. Kg8 {[%clk 0:00:02.9]}
47... Rc8+ {[%clk 0:00:21.9]} 0-1

[Event "Live Chess"]
[Site "Chess.com"]
[Date "2023.05.21"]
[Round "-"]
[White "whitedjohn"]
[Black "Doge_Dandolo"]
[Result "0-1"]
[WhiteElo "1671"]
[BlackElo "1901"]
[TimeControl "300"]
[EndTime "6:32:43 PDT"]
[Termination "Doge_Dandolo won by resignation"]

1. e4 {[%clk 0:04:58.2]} 1... c6 {[%clk 0:04:52.7]} 2. d4 {[%clk 0:04:28.7]}
2... d5 {[%clk 0:04:51.1]} 3. exd5 {[%clk 0:04:27.5]} 3... cxd5 {[%clk
0:04:49.2]} 4. Bd3 {[%clk 0:04:26.1]} 4... Nc6 {[%clk 0:04:45.4]} 5. c3 {[%clk
0:04:24.7]} 5... Qc7 {[%clk 0:04:39.9]} 6. Nf3 {[%clk 0:04:22.3]} 6... Bg4
{[%clk 0:04:38.5]} 7. O-O {[%clk 0:04:20.9]} 7... e6 {[%clk 0:04:35.6]} 8. Bg5
{[%clk 0:04:19.3]} 8... Bd6 {[%clk 0:04:31.4]} 9. h3 {[%clk 0:04:16.8]} 9...
Bxf3 {[%clk 0:04:29.9]} 10. Qxf3 {[%clk 0:04:15.2]} 10... Nge7 {[%clk
0:04:27.5]} 11. Bxe7 {[%clk 0:04:09.3]} 11... Bxe7 {[%clk 0:04:16.2]} 12. Nd2
{[%clk 0:03:18.7]} 12... Rb8 {[%clk 0:04:05.3]} 13. Qg4 {[%clk 0:03:14.8]} 13...
Bf6 {[%clk 0:03:44.6]} 14. f4 {[%clk 0:03:06.1]} 14... b5 {[%clk 0:03:41.7]} 15.
f5 {[%clk 0:03:04.9]} 15... O-O {[%clk 0:03:39.6]} 16. fxe6 {[%clk 0:02:59.9]}
16... fxe6 {[%clk 0:03:38.7]} 17. Rae1 {[%clk 0:02:56.1]} 17... e5 {[%clk
0:03:35.3]} 18. dxe5 {[%clk 0:02:46.9]} 18... Nxe5 {[%clk 0:03:31]} 19. Qe6+
{[%clk 0:02:41.4]} 19... Kh8 {[%clk 0:03:29.1]} 20. Qxd5 {[%clk 0:02:34.5]}
20... Rbd8 {[%clk 0:03:20.2]} 21. Rxe5 {[%clk 0:02:32.7]} 21... Rxd5 {[%clk
0:03:17.6]} 22. Rxd5 {[%clk 0:02:31.6]} 22... g6 {[%clk 0:03:08.3]} 23. Ne4
{[%clk 0:02:28]} 23... Bg7 {[%clk 0:03:03.3]} 24. Rxf8+ {[%clk 0:02:24.4]} 24...
Bxf8 {[%clk 0:03:01.6]} 25. Bxb5 {[%clk 0:02:14.8]} 25... Qb7 {[%clk 0:02:49.7]}
26. c4 {[%clk 0:01:53]} 26... a6 {[%clk 0:02:37.4]} 0-1

[Event "Live Chess"]
[Site "Chess.com"]
[Date "2023.05.21"]
[Round "-"]
[White "seasidecastle27"]
[Black "LiamClery2020"]
[Result "1-0"]
[WhiteElo "1898"]
[BlackElo "1965"]
[TimeControl "300"]
[EndTime "6:32:53 PDT"]
[Termination "seasidecastle27 won by checkmate"]

1. d4 {[%clk 0:04:56.4]} 1... Nf6 {[%clk 0:04:58.6]} 2. Nf3 {[%clk 0:04:55]}
2... e6 {[%clk 0:04:55.6]} 3. Bg5 {[%clk 0:04:53.2]} 3... Be7 {[%clk 0:04:54.4]}
4. Nbd2 {[%clk 0:04:51.4]} 4... d5 {[%clk 0:04:53.5]} 5. e3 {[%clk 0:04:49.8]}
5... c5 {[%clk 0:04:51.4]} 6. c3 {[%clk 0:04:48]} 6... Nc6 {[%clk 0:04:48.1]} 7.
Bd3 {[%clk 0:04:46.3]} 7... cxd4 {[%clk 0:04:45.9]} 8. exd4 {[%clk 0:04:44.6]}
8... Bd6 {[%clk 0:04:44.7]} 9. Qe2 {[%clk 0:04:40.8]} 9... O-O {[%clk
0:04:41.2]} 10. Ne5 {[%clk 0:04:37.8]} 10... h6 {[%clk 0:04:38.4]} 11. h4 {[%clk
0:04:33.5]} 11... Be7 {[%clk 0:04:31.6]} 12. O-O-O {[%clk 0:04:21.7]} 12... Qa5
{[%clk 0:04:27.1]} 13. Kb1 {[%clk 0:04:16.3]} 13... a6 {[%clk 0:04:16.8]} 14.
Bxf6 {[%clk 0:03:54]} 14... Bxf6 {[%clk 0:04:14.7]} 15. g4 {[%clk 0:03:52.6]}
15... Bxe5 {[%clk 0:04:06.5]} 16. dxe5 {[%clk 0:03:50.7]} 16... b5 {[%clk
0:04:05.6]} 17. g5 {[%clk 0:03:48.4]} 17... b4 {[%clk 0:04:02.2]} 18. gxh6
{[%clk 0:03:42.1]} 18... bxc3 {[%clk 0:04:00]} 19. Qg4 {[%clk 0:03:36.9]} 19...
g6 {[%clk 0:03:51.2]} 20. Bxg6 {[%clk 0:03:34.7]} 20... Nxe5 {[%clk 0:03:45.8]}
21. Bh7+ {[%clk 0:03:27]} 21... Kxh7 {[%clk 0:03:44.2]} 22. Qg7# {[%clk
0:03:25.3]} 1-0

[Event "Live Chess"]
[Site "Chess.com"]
[Date "2023.05.21"]
[Round "-"]
[White "GMMickeyAdams"]
[Black "WelshTiger"]
[Result "1-0"]
[WhiteElo "2783"]
[BlackElo "2319"]
[TimeControl "300"]
[EndTime "6:32:57 PDT"]
[Termination "GMMickeyAdams won by resignation"]

1. d4 {[%clk 0:04:56.3]} 1... d5 {[%clk 0:04:54.3]} 2. Nf3 {[%clk 0:04:55.7]}
2... Nf6 {[%clk 0:04:52.8]} 3. g3 {[%clk 0:04:54.6]} 3... e6 {[%clk 0:04:49.8]}
4. Bg2 {[%clk 0:04:54]} 4... c5 {[%clk 0:04:48.7]} 5. c4 {[%clk 0:04:51.9]} 5...
Nc6 {[%clk 0:04:45.6]} 6. cxd5 {[%clk 0:04:50.1]} 6... exd5 {[%clk 0:04:44.6]}
7. O-O {[%clk 0:04:49.7]} 7... Be7 {[%clk 0:04:43.6]} 8. Nc3 {[%clk 0:04:47.6]}
8... O-O {[%clk 0:04:41.7]} 9. Bf4 {[%clk 0:04:45.1]} 9... c4 {[%clk 0:04:37.1]}
10. Ne5 {[%clk 0:04:43.3]} 10... Be6 {[%clk 0:04:35.8]} 11. e4 {[%clk
0:04:35.9]} 11... dxe4 {[%clk 0:04:02.7]} 12. Nxc6 {[%clk 0:04:28.1]} 12... bxc6
{[%clk 0:03:58.4]} 13. Nxe4 {[%clk 0:04:27.4]} 13... Nxe4 {[%clk 0:03:53.7]} 14.
Bxe4 {[%clk 0:04:25.6]} 14... Bd5 {[%clk 0:03:53.3]} 15. Re1 {[%clk 0:04:23.9]}
15... Bf6 {[%clk 0:03:44.6]} 16. Be5 {[%clk 0:04:22.2]} 16... Bxe5 {[%clk
0:03:39.1]} 17. dxe5 {[%clk 0:04:20.7]} 17... Qd7 {[%clk 0:03:38.4]} 18. Rc1
{[%clk 0:04:15]} 18... Rad8 {[%clk 0:03:36.1]} 19. Qe2 {[%clk 0:04:08.8]} 19...
Qe6 {[%clk 0:03:33.9]} 20. Rcd1 {[%clk 0:04:05.4]} 20... Rd7 {[%clk 0:03:26.8]}
21. Bxd5 {[%clk 0:04:00]} 21... cxd5 {[%clk 0:03:25.2]} 22. Rd4 {[%clk
0:03:59.4]} 22... f5 {[%clk 0:03:18.2]} 23. Red1 {[%clk 0:03:56.9]} 23... Re8
{[%clk 0:03:01.5]} 24. f4 {[%clk 0:03:54.2]} 24... g5 {[%clk 0:02:59.3]} 25. Qh5
{[%clk 0:03:35.4]} 25... gxf4 {[%clk 0:02:40.7]} 26. gxf4 {[%clk 0:03:33.8]}
26... Rg7+ {[%clk 0:02:39.5]} 27. Kh1 {[%clk 0:03:30.6]} 27... Rd8 {[%clk
0:02:30.7]} 28. Qf3 {[%clk 0:03:28.4]} 28... Rgd7 {[%clk 0:02:16.1]} 29. b3
{[%clk 0:03:24.4]} 29... cxb3 {[%clk 0:02:13.4]} 30. Qxb3 {[%clk 0:03:19.2]}
30... Kh8 {[%clk 0:02:11]} 31. Rg1 {[%clk 0:03:16.1]} 31... Rg7 {[%clk
0:02:05.2]} 32. Rxg7 {[%clk 0:03:14.2]} 32... Kxg7 {[%clk 0:02:04.9]} 33. Rd2
{[%clk 0:03:06.5]} 33... Kh8 {[%clk 0:02:00]} 34. Rg2 {[%clk 0:03:04.6]} 34...
Qc6 {[%clk 0:01:53.5]} 35. Qg3 {[%clk 0:03:01.6]} 35... Qh6 {[%clk 0:01:39.5]}
36. Kg1 {[%clk 0:02:47.2]} 36... Qb6+ {[%clk 0:01:28.5]} 37. Kh1 {[%clk
0:02:45.2]} 37... Qh6 {[%clk 0:01:27.1]} 38. h3 {[%clk 0:02:18.3]} 38... d4
{[%clk 0:01:25.5]} 39. Rd2 {[%clk 0:02:16.1]} 39... Qc6+ {[%clk 0:01:23.1]} 40.
Kh2 {[%clk 0:02:14.8]} 40... Rg8 {[%clk 0:01:12.9]} 41. Qh4 {[%clk 0:02:09.8]}
41... Qf3 {[%clk 0:01:01.2]} 42. Rb2 {[%clk 0:01:50.5]} 42... Qc6 {[%clk
0:00:41.4]} 43. Qe7 {[%clk 0:01:47.7]} 43... h6 {[%clk 0:00:25.4]} 44. e6 {[%clk
0:01:40.2]} 44... Qf3 {[%clk 0:00:19.9]} 45. Qf6+ {[%clk 0:01:38.5]} 45... Rg7
{[%clk 0:00:19.5]} 46. Qxh6+ {[%clk 0:01:32.2]} 1-0

[Event "Live Chess"]
[Site "Chess.com"]
[Date "2023.05.21"]
[Round "-"]
[White "garyjc"]
[Black "tpm07"]
[Result "0-1"]
[WhiteElo "1035"]
[BlackElo "1946"]
[TimeControl "300"]
[EndTime "6:32:58 PDT"]
[Termination "tpm07 won by resignation"]

1. e4 {[%clk 0:04:55]} 1... e5 {[%clk 0:04:58.6]} 2. Nf3 {[%clk 0:04:51.5]} 2...
Nc6 {[%clk 0:04:57.4]} 3. d4 {[%clk 0:04:50.6]} 3... exd4 {[%clk 0:04:56.2]} 4.
Nxd4 {[%clk 0:04:49.9]} 4... Nf6 {[%clk 0:04:55.1]} 5. Nxc6 {[%clk 0:04:43.7]}
5... bxc6 {[%clk 0:04:55]} 6. e5 {[%clk 0:04:42.7]} 6... Qe7 {[%clk 0:04:52.9]}
7. Qe2 {[%clk 0:04:39.2]} 7... Nd5 {[%clk 0:04:51.1]} 8. Nc3 {[%clk 0:04:28.4]}
8... Nxc3 {[%clk 0:04:36.6]} 9. bxc3 {[%clk 0:04:26.9]} 9... Qe6 {[%clk
0:04:31.8]} 10. g3 {[%clk 0:04:17.6]} 10... g6 {[%clk 0:04:30.4]} 11. Bg2 {[%clk
0:04:16.7]} 11... Bg7 {[%clk 0:04:28.9]} 12. O-O {[%clk 0:04:15]} 12... O-O
{[%clk 0:04:23.7]} 13. Re1 {[%clk 0:04:13.2]} 13... a5 {[%clk 0:04:17.4]} 14.
Bf4 {[%clk 0:04:05.9]} 14... Ba6 {[%clk 0:04:14.2]} 15. Qd2 {[%clk 0:03:59]}
15... Rfe8 {[%clk 0:04:08.4]} 16. Rab1 {[%clk 0:03:42.6]} 16... Qc4 {[%clk
0:03:42.7]} 17. Qxd7 {[%clk 0:03:18.9]} 17... Qxc3 {[%clk 0:03:32.4]} 18. Bxc6
{[%clk 0:02:56.5]} 18... Red8 {[%clk 0:03:21.9]} 19. Qxc7 {[%clk 0:02:32.3]}
19... Rac8 {[%clk 0:03:19.2]} 20. Qb6 {[%clk 0:01:48]} 20... Qxc6 {[%clk
0:03:04.8]} 21. Qxc6 {[%clk 0:01:41]} 21... Rxc6 {[%clk 0:03:01.8]} 22. Bg5
{[%clk 0:01:30.9]} 22... Rdc8 {[%clk 0:02:57.5]} 23. Bf6 {[%clk 0:01:19.4]}
23... Rxc2 {[%clk 0:02:47.2]} 24. Bxg7 {[%clk 0:01:16.9]} 24... Kxg7 {[%clk
0:02:46]} 25. e6 {[%clk 0:01:12.7]} 25... fxe6 {[%clk 0:02:39.7]} 26. Rxe6
{[%clk 0:01:10.7]} 26... R2c6 {[%clk 0:02:27.7]} 27. Re7+ {[%clk 0:01:04.6]}
27... Kh6 {[%clk 0:02:22.8]} 28. Rbe1 {[%clk 0:01:03]} 28... Rc1 {[%clk
0:02:12]} 29. Rxc1 {[%clk 0:00:59.6]} 29... Rxc1+ {[%clk 0:02:10.7]} 30. Kg2
{[%clk 0:00:59.5]} 30... Rc2 {[%clk 0:01:57.5]} 31. Re4 {[%clk 0:00:51.6]} 31...
Bb7 {[%clk 0:01:54.4]} 0-1

[Event "Live Chess"]
[Site "Chess.com"]
[Date "2023.05.21"]
[Round "-"]
[White "stevochess11"]
[Black "Ferrarifan27"]
[Result "0-1"]
[WhiteElo "1701"]
[BlackElo "2070"]
[TimeControl "300"]
[EndTime "6:33:00 PDT"]
[Termination "Ferrarifan27 won by resignation"]

1. e4 {[%clk 0:04:57]} 1... e5 {[%clk 0:04:58.4]} 2. a3 {[%clk 0:04:55.3]} 2...
Nc6 {[%clk 0:04:56]} 3. b4 {[%clk 0:04:53.8]} 3... a6 {[%clk 0:04:54.2]} 4. d3
{[%clk 0:04:50.3]} 4... Nf6 {[%clk 0:04:51.6]} 5. g3 {[%clk 0:04:46.7]} 5... Be7
{[%clk 0:04:50.2]} 6. f3 {[%clk 0:04:43.5]} 6... d5 {[%clk 0:04:47.5]} 7. Nc3
{[%clk 0:04:36.4]} 7... dxe4 {[%clk 0:04:44.6]} 8. Nxe4 {[%clk 0:04:34.1]} 8...
Nxe4 {[%clk 0:04:42.9]} 9. fxe4 {[%clk 0:04:31.6]} 9... Qd4 {[%clk 0:04:40.5]}
10. Bd2 {[%clk 0:04:05.6]} 10... a5 {[%clk 0:04:38]} 11. c3 {[%clk 0:04:04.2]}
11... Qd6 {[%clk 0:04:35.2]} 12. Bg2 {[%clk 0:04:02.4]} 12... Qxd3 {[%clk
0:04:30.7]} 13. Ne2 {[%clk 0:03:57.1]} 13... axb4 {[%clk 0:04:25.9]} 14. axb4
{[%clk 0:03:51.9]} 14... Rxa1 {[%clk 0:04:24.8]} 15. Qxa1 {[%clk 0:03:50.8]}
15... O-O {[%clk 0:04:22]} 16. Qb2 {[%clk 0:03:47.5]} 16... Bg4 {[%clk
0:04:15.4]} 17. Bc1 {[%clk 0:03:40.2]} 17... Rd8 {[%clk 0:04:08.5]} 18. h3
{[%clk 0:03:38.8]} 18... Qd1+ {[%clk 0:04:06]} 19. Kf2 {[%clk 0:03:36.8]} 19...
Qxe2+ {[%clk 0:03:58.2]} 20. Qxe2 {[%clk 0:03:34.4]} 20... Bxe2 {[%clk
0:03:58.1]} 21. Kxe2 {[%clk 0:03:33.2]} 21... Ra8 {[%clk 0:03:49.4]} 22. Kf3
{[%clk 0:03:25.9]} 22... Ra1 {[%clk 0:03:38.9]} 23. h4 {[%clk 0:03:15.6]} 23...
Kf8 {[%clk 0:03:30.7]} 24. Bh3 {[%clk 0:03:08.6]} 24... Ke8 {[%clk 0:03:26]} 25.
Rd1 {[%clk 0:03:04]} 25... Bd6 {[%clk 0:03:23.1]} 26. Ke2 {[%clk 0:02:58.7]}
26... Ra2+ {[%clk 0:03:19.5]} 27. Ke3 {[%clk 0:02:52.5]} 27... Rc2 {[%clk
0:03:10.6]} 28. Bd2 {[%clk 0:02:46.2]} 28... Ra2 {[%clk 0:02:56.9]} 29. Bf1
{[%clk 0:02:43.6]} 29... Ke7 {[%clk 0:02:49.1]} 30. Bc4 {[%clk 0:02:39.5]} 30...
Ra3 {[%clk 0:02:46.5]} 31. Rf1 {[%clk 0:02:37.2]} 31... f6 {[%clk 0:02:44.3]}
32. g4 {[%clk 0:02:29.9]} 32... Bxb4 {[%clk 0:02:42.6]} 33. g5 {[%clk 0:02:25]}
33... Bxc3 {[%clk 0:02:39.2]} 34. gxf6+ {[%clk 0:02:20.6]} 34... gxf6 {[%clk
0:02:37.7]} 35. Rg1 {[%clk 0:02:14.2]} 35... Bd4+ {[%clk 0:02:36]} 36. Ke2
{[%clk 0:02:12.3]} 36... Bxg1 {[%clk 0:02:34.8]} 0-1

[Event "Live Chess"]
[Site "Chess.com"]
[Date "2023.05.21"]
[Round "-"]
[White "vovanada"]
[Black "JoeRoot66"]
[Result "0-1"]
[WhiteElo "833"]
[BlackElo "1899"]
[TimeControl "300"]
[EndTime "6:33:11 PDT"]
[Termination "JoeRoot66 won by resignation"]

1. e4 {[%clk 0:04:55.8]} 1... c6 {[%clk 0:04:59.2]} 2. Nf3 {[%clk 0:04:53.1]}
2... d5 {[%clk 0:04:59.1]} 3. d3 {[%clk 0:04:48.1]} 3... g6 {[%clk 0:04:57]} 4.
Nc3 {[%clk 0:04:39.6]} 4... Bg7 {[%clk 0:04:55.8]} 5. exd5 {[%clk 0:04:34.8]}
5... cxd5 {[%clk 0:04:55.7]} 6. d4 {[%clk 0:04:25.9]} 6... Bg4 {[%clk
0:04:51.2]} 7. Be2 {[%clk 0:04:23.7]} 7... Nc6 {[%clk 0:04:49.6]} 8. O-O {[%clk
0:04:18.2]} 8... e6 {[%clk 0:04:47.2]} 9. h3 {[%clk 0:04:17]} 9... Bxf3 {[%clk
0:04:46.1]} 10. Bxf3 {[%clk 0:04:16.9]} 10... Nxd4 {[%clk 0:04:45.8]} 11. Be3
{[%clk 0:03:43.3]} 11... Nxf3+ {[%clk 0:04:42.8]} 12. Qxf3 {[%clk 0:03:43.2]}
12... Ne7 {[%clk 0:04:40]} 13. a4 {[%clk 0:03:27.6]} 13... O-O {[%clk
0:04:37.6]} 14. b3 {[%clk 0:03:25.7]} 14... Bxc3 {[%clk 0:04:34.4]} 15. Rad1
{[%clk 0:03:20.6]} 15... d4 {[%clk 0:04:32.4]} 16. Bd2 {[%clk 0:03:17.1]} 16...
Qd5 {[%clk 0:04:28.9]} 17. Qxd5 {[%clk 0:03:10]} 17... Nxd5 {[%clk 0:04:28.3]}
18. Bxc3 {[%clk 0:03:07.8]} 18... Nxc3 {[%clk 0:04:28.2]} 19. Rfe1 {[%clk
0:02:52]} 19... Rfd8 {[%clk 0:04:24.6]} 20. Rd3 {[%clk 0:02:49.4]} 20... Rac8
{[%clk 0:04:17.6]} 21. g4 {[%clk 0:02:41.6]} 21... Na2 {[%clk 0:04:13.5]} 22.
Red1 {[%clk 0:02:29.5]} 22... Rxc2 {[%clk 0:03:57.5]} 23. Rxd4 {[%clk
0:02:22.4]} 23... Rxd4 {[%clk 0:03:57.4]} 24. Rxd4 {[%clk 0:02:20.5]} 24... Nc3
{[%clk 0:03:57.3]} 25. Rd8+ {[%clk 0:02:15.7]} 25... Kg7 {[%clk 0:03:54]} 26.
Kg2 {[%clk 0:02:13.4]} 26... Ne4 {[%clk 0:03:52.3]} 27. Rd7 {[%clk 0:02:07.7]}
27... Rxf2+ {[%clk 0:03:45.7]} 28. Kg1 {[%clk 0:02:04.9]} 28... Rb2 {[%clk
0:03:39.7]} 29. Rxb7 {[%clk 0:02:02.2]} 29... Nc5 {[%clk 0:03:38.4]} 30. Rxa7
{[%clk 0:01:59.6]} 30... Rxb3 {[%clk 0:03:31.6]} 31. a5 {[%clk 0:01:58.7]} 31...
Ra3 {[%clk 0:03:30.7]} 32. Kh2 {[%clk 0:01:50.4]} 32... Nb3 {[%clk 0:03:27.2]}
33. a6 {[%clk 0:01:48.2]} 33... Nc5 {[%clk 0:03:24.6]} 0-1